fUST/lending_fUST_20250708
["ID","MTS","AMOUNT","RATE_DAILY","PERIOD"]
[370276959,1751934648236,-1802.0,0.0001972,2]
[370276962,1751934648250,-460.0,0.00019726,2]
[370276964,1751934648263,-892.98,0.00019726,2]
[370276967,1751934648277,-460.0,0.00019726,2]
[370276969,1751934648291,-460.0,0.00019726,2]
[370276971,1751934648303,-259.06349243,0.00019726,2]
[370276973,1751934648313,-1131.64088915,0.00019726,2]
[370276975,1751934648323,-583.0,0.00019726,2]
[370276978,1751934648334,-460.0,0.00019726,2]
[370276980,1751934648346,-460.0,0.00019726,2]
[370276982,1751934648359,-460.0,0.00019726,2]
[370276985,1751934648379,-460.0,0.00019726,2]
[370276987,1751934648392,-151.0,0.00019726,2]
[370276989,1751934648406,-151.0,0.00019726,2]
[370276991,1751934648416,-460.0,0.00019726,2]
[370276993,1751934648428,-648.6,0.00019726,2]
[370276996,1751934648439,-523.5707414,0.00019726,2]
[370276998,1751934648454,-460.0,0.00019726,2]
[370277000,1751934648466,-460.0,0.00019726,2]
[370277002,1751934648476,-460.0,0.00019726,2]
[370277004,1751934648487,-151.0,0.00019726,2]
[370277007,1751934648498,-460.0,0.00019726,2]
[370277009,1751934648508,-151.0,0.00019726,2]
[370277011,1751934648519,-460.0,0.00019726,2]
[370277013,1751934648530,-460.0,0.00019726,2]
[370277015,1751934648542,-163.53,0.00019726,2]
[370277018,1751934648553,-164.463255,0.00019726,2]
[370277020,1751934648564,-297.89544518,0.00019726,2]
[370277022,1751934648575,-554.18,0.00019726,2]
[370277024,1751934648587,-621.95,0.00019726,2]
[370277027,1751934648599,-745.73,0.00019726,2]
[370277029,1751934648610,-876.98,0.00019726,2]
[370277031,1751934648623,-151.0,0.00019726,2]
[370277033,1751934648634,-1466.01,0.00019726,2]
[370277036,1751934648647,-460.0,0.00019726,2]
[370277038,1751934648658,-224.414794,0.00019726,2]
[370277040,1751934648669,-460.0,0.00019726,2]
[370277042,1751934648681,-2128.29,0.00019726,2]
[370277044,1751934648693,-460.0,0.00019726,2]
[370277046,1751934648704,-680.53,0.00019726,2]
[370277048,1751934648715,-151.0,0.00019726,2]
[370277051,1751934648726,-460.0,0.00019726,2]
[370277053,1751934648737,-1956.06,0.00019726,2]
[370277055,1751934648748,-668.42,0.00019726,2]
[370277057,1751934648759,-2232.09,0.00019726,2]
[370277059,1751934648770,-151.0,0.00019726,2]
[370277062,1751934648782,-3378.73,0.00019726,2]
[370277064,1751934648793,-767.21,0.00019726,2]
[370277066,1751934648804,-460.0,0.00019726,2]
[370277068,1751934648816,-6517.54,0.00019726,2]
[370277070,1751934648827,-673.62,0.00019726,2]
[370277073,1751934648839,-151.0,0.00019726,2]
[370277075,1751934648850,-858.37,0.00019726,2]
[370277077,1751934648862,-572.69,0.00019726,2]
[370277079,1751934648873,-537.53,0.00019726,2]
[370277082,1751934648884,-151.0,0.00019726,2]
[370277084,1751934648897,-3602.77,0.00019726,2]
[370277086,1751934648909,-1996.68,0.00019726,2]
[370277088,1751934648920,-460.0,0.00019726,2]
[370277090,1751934648932,-3214.33,0.00019726,2]
[370277093,1751934648944,-568.51,0.00019726,2]
[370277095,1751934648955,-1584.33,0.00019726,2]
[370277097,1751934648967,-460.0,0.00019726,2]
[370277099,1751934648978,-1356.66,0.00019726,2]
[370277102,1751934648989,-460.0,0.00019726,2]
[370277104,1751934649002,-4742.84,0.00019726,2]
[370277106,1751934649014,-460.0,0.00019726,2]
[370277108,1751934649026,-460.0,0.00019726,2]
[370277110,1751934649037,-1756.58,0.00019726,2]
[370277113,1751934649050,-460.0,0.00019726,2]
[370277115,1751934649061,-151.0,0.00019726,2]
[370277117,1751934649073,-460.0,0.00019726,2]
[370277119,1751934649085,-1466.1,0.00019726,2]
[370277121,1751934649097,-460.0,0.00019726,2]
[370277124,1751934649108,-651.69,0.00019726,2]
[370277126,1751934649120,-525.9,0.00019726,2]
[370277128,1751934649131,-460.0,0.00019726,2]
[370277130,1751934649144,-460.0,0.00019726,2]
[370277133,1751934649157,-460.0,0.00019726,2]
[370277135,1751934649169,-636.94,0.00019726,2]
[370277137,1751934649182,-460.0,0.00019726,2]
[370277139,1751934649193,-460.0,0.00019726,2]
[370277142,1751934649205,-460.0,0.00019726,2]
[370277144,1751934649218,-460.0,0.00019726,2]
[370277146,1751934649229,-1352.62,0.00019726,2]
[370277148,1751934649240,-460.0,0.00019726,2]
[370277150,1751934649249,-460.0,0.00019726,2]
[370277152,1751934649259,-526.6,0.00019726,2]
[370277154,1751934649269,-2160.14,0.00019726,2]
[370277175,1751934649463,-460.0,0.00019726,2]
[370277177,1751934649479,-638.75,0.00019726,2]
[370277180,1751934649490,-460.0,0.00019726,2]
[370277182,1751934649499,-2621.6,0.00019726,2]
[370277184,1751934649508,-702.57,0.00019726,2]
[370277186,1751934649518,-4108.33,0.00019726,2]
[370277188,1751934649527,-845.48,0.00019726,2]
[370277190,1751934649537,-460.0,0.00019726,2]
[370277192,1751934649546,-511.83,0.00019726,2]
[370277194,1751934649556,-972.56,0.00019726,2]
[370277196,1751934649565,-460.0,0.00019726,2]
[370277198,1751934649575,-460.0,0.00019726,2]
[370277200,1751934649584,-661.82,0.00019726,2]
[370277202,1751934649593,-460.0,0.00019726,2]
[370277204,1751934649603,-460.0,0.00019726,2]
[370277206,1751934649613,-3209.36,0.00019726,2]
[370277208,1751934649622,-2838.13,0.00019726,2]
[370277210,1751934649632,-460.0,0.00019726,2]
[370277212,1751934649642,-605.55,0.00019726,2]
[370277214,1751934649651,-5000.0,0.00019864,2]
[370277216,1751934649660,-500.0,0.00019865,2]
[370277218,1751934649670,-500.0,0.00019865,2]
[370277220,1751934649679,-500.0,0.00019865,2]
[370277222,1751934649688,-500.0,0.00019865,2]
[370277224,1751934649698,-500.0,0.00019865,2]
[370277225,1751934649708,-536.12769746,0.00019865,2]
[370277227,1751934649720,-500.0,0.00019885,2]
[370277229,1751934649728,-263.42210351,0.00019924,2]
[370277231,1751934649738,-321.45057783,0.00019924,2]
[370277233,1751934649747,-1044.68030393,0.00019938,2]
[370277235,1751934649756,-500.0,0.00019944,2]
[370277237,1751934649765,-151.0,0.00019944,2]
[370277239,1751934649775,-500.0,0.0001998,2]
[370277241,1751934649784,-168.0,0.00019985,2]
[370277243,1751934649793,-297.72307324,0.0002,2]
[370277245,1751934649802,-321.0210537,0.0002,2]
[370277247,1751934649812,-308.83950005,0.0002,2]
[370277249,1751934649821,-2278.92019623,0.0002,14]
[370277251,1751934649831,-151.0,0.0002,2]
[370277253,1751934649840,-151.0,0.0002,2]
[370277255,1751934649850,-460.0,0.0002,2]
[370277257,1751934649859,-892.98,0.0002,2]
[370277259,1751934649868,-183.350427,0.0002,2]
[370277261,1751934649877,-460.0,0.0002,2]
[370277263,1751934649887,-151.0,0.0002,2]
[370277265,1751934649897,-151.0,0.0002,2]
[370277267,1751934649906,-583.0,0.0002,2]
[370277269,1751934649916,-460.0,0.0002,2]
[370277271,1751934649925,-460.0,0.0002,2]
[370277273,1751934649935,-469.17711346,0.0002,2]
[370277275,1751934649944,-460.0,0.0002,2]
[370277277,1751934649954,-460.0,0.0002,2]
[370277279,1751934649963,-648.6,0.0002,2]
[370277281,1751934649972,-460.0,0.0002,2]
[370277283,1751934649982,-460.0,0.0002,2]
[370277285,1751934649991,-460.0,0.0002,2]
[370277287,1751934650000,-151.0,0.0002,2]
[370277288,1751934650010,-460.0,0.0002,2]
[370277290,1751934650019,-151.0,0.0002,2]
[370277292,1751934650028,-467.02,0.0002,2]
[370277294,1751934650037,-460.0,0.0002,2]
[370277296,1751934650047,-554.18,0.0002,2]
[370277298,1751934650056,-621.95,0.0002,2]
[370277300,1751934650065,-745.73,0.0002,2]
[370277302,1751934650075,-876.98,0.0002,2]
[370277304,1751934650084,-151.0,0.0002,2]
[370277306,1751934650093,-1466.01,0.0002,2]
[370277308,1751934650104,-460.0,0.0002,2]
[370277310,1751934650114,-460.0,0.0002,2]
[370277312,1751934650124,-2128.29,0.0002,2]
[370277314,1751934650134,-460.0,0.0002,2]
[370277316,1751934650143,-680.53,0.0002,2]
[370277318,1751934650152,-151.0,0.0002,2]
[370277320,1751934650161,-460.0,0.0002,2]
[370277322,1751934650170,-1956.06,0.0002,2]
[370277324,1751934650180,-668.42,0.0002,2]
[370277326,1751934650190,-2232.09,0.0002,2]
[370277328,1751934650201,-3378.73,0.0002,2]
[370277330,1751934650211,-767.21,0.0002,2]
[370277332,1751934650220,-460.0,0.0002,2]
[370277334,1751934650229,-6517.54,0.0002,2]
[370277336,1751934650239,-673.62,0.0002,2]
[370277338,1751934650248,-151.0,0.0002,2]
[370277340,1751934650258,-858.37,0.0002,2]
[370277342,1751934650267,-572.69,0.0002,2]
[370277344,1751934650277,-537.53,0.0002,2]
[370277346,1751934650286,-151.0,0.0002,2]
[370277348,1751934650295,-3602.77,0.0002,2]
[370277349,1751934650304,-1996.68,0.0002,2]
[370277351,1751934650314,-460.0,0.0002,2]
[370277353,1751934650324,-3214.33,0.0002,2]
[370277355,1751934650333,-568.51,0.0002,2]
[370277357,1751934650342,-1584.33,0.0002,2]
[370277359,1751934650351,-460.0,0.0002,2]
[370277361,1751934650361,-1356.66,0.0002,2]
[370277363,1751934650374,-460.0,0.0002,2]
[370277365,1751934650383,-4742.84,0.0002,2]
[370277367,1751934650393,-460.0,0.0002,2]
[370277369,1751934650402,-460.0,0.0002,2]
[370277371,1751934650412,-1756.58,0.0002,2]
[370277373,1751934650422,-460.0,0.0002,2]
[370277375,1751934650432,-151.0,0.0002,2]
[370277377,1751934650443,-526.6144592,0.0002,2]
[370277379,1751934650452,-1466.1,0.0002,2]
[370277381,1751934650461,-460.0,0.0002,2]
[370277383,1751934650471,-651.69,0.0002,2]
[370277385,1751934650480,-525.9,0.0002,2]
[370277387,1751934650490,-460.0,0.0002,2]
[370277389,1751934650500,-460.0,0.0002,2]
[370277391,1751934650510,-460.0,0.0002,2]
[370277393,1751934650519,-636.94,0.0002,2]
[370277395,1751934650528,-460.0,0.0002,2]
[370277397,1751934650538,-460.0,0.0002,2]
[370277399,1751934650547,-460.0,0.0002,2]
[370277401,1751934650556,-1352.62,0.0002,2]
[370277403,1751934650566,-460.0,0.0002,2]
[370277404,1751934650575,-460.0,0.0002,2]
[370277406,1751934650584,-460.0,0.0002,2]
[370277408,1751934650594,-526.6,0.0002,2]
[370277410,1751934650603,-2160.14,0.0002,2]
[370277412,1751934650613,-460.0,0.0002,2]
[370277414,1751934650622,-638.75,0.0002,2]
[370277416,1751934650633,-460.0,0.0002,2]
[370277418,1751934650642,-2621.6,0.0002,2]
[370277420,1751934650651,-702.57,0.0002,2]
[370277422,1751934650661,-4108.33,0.0002,2]
[370277424,1751934650670,-845.48,0.0002,2]
[370277426,1751934650679,-460.0,0.0002,2]
[370277428,1751934650689,-511.83,0.0002,2]
[370277430,1751934650699,-972.56,0.0002,2]
[370277432,1751934650709,-460.0,0.0002,2]
[370277434,1751934650718,-460.0,0.0002,2]
[370277436,1751934650728,-661.82,0.0002,2]
[370277438,1751934650737,-460.0,0.0002,2]
[370277440,1751934650746,-460.0,0.0002,2]
[370277442,1751934650757,-3209.36,0.0002,2]
[370277444,1751934650766,-2838.13,0.0002,2]
[370277446,1751934650776,-460.0,0.0002,2]
[370277448,1751934650786,-605.55,0.0002,2]
[370277450,1751934650796,-518.0,0.00020023,2]
[370277452,1751934650805,-168.0,0.00020105,2]
[370277454,1751934650815,-974.48558282,0.00020105,2]
[370277456,1751934650825,-1802.0,0.00020129,2]
[370277458,1751934650835,-222.7,0.00020257,4]
[370277460,1751934650844,-1000.0,0.0002027,2]
[370277462,1751934650853,-151.0,0.00020273,2]
[370277464,1751934650862,-151.0,0.00020273,2]
[370277466,1751934650872,-151.0,0.00020273,2]
[370277468,1751934650881,-151.0,0.00020273,2]
[370277470,1751934650890,-337.36127948,0.00020273,2]
[370277472,1751934650900,-500.0,0.00020273,2]
[370277474,1751934650909,-500.0,0.00020273,2]
[370277476,1751934650919,-892.98,0.00020273,2]
[370277478,1751934650928,-460.0,0.00020273,2]
[370277480,1751934650937,-151.0,0.00020273,2]
[370277482,1751934650946,-151.0,0.00020273,2]
[370277484,1751934650955,-151.0,0.00020273,2]
[370277486,1751934650965,-583.0,0.00020273,2]
[370277488,1751934650974,-460.0,0.00020273,2]
[370277490,1751934650983,-460.0,0.00020273,2]
[370277492,1751934650992,-460.0,0.00020273,2]
[370277494,1751934651002,-460.0,0.00020273,2]
[370277496,1751934651011,-648.6,0.00020273,2]
[370277498,1751934651021,-460.0,0.00020273,2]
[370277500,1751934651030,-460.0,0.00020273,2]
[370277502,1751934651039,-460.0,0.00020273,2]
[370277504,1751934651050,-151.0,0.00020273,2]
[370277506,1751934651060,-460.0,0.00020273,2]
[370277508,1751934651069,-151.0,0.00020273,2]
[370277510,1751934651079,-151.0,0.00020273,2]
[370277512,1751934651088,-460.0,0.00020273,2]
[370277514,1751934651097,-554.18,0.00020273,2]
[370277516,1751934651106,-621.95,0.00020273,2]
[370277518,1751934651115,-745.73,0.00020273,2]
[370277520,1751934651124,-876.98,0.00020273,2]
[370277522,1751934651133,-151.0,0.00020273,2]
[370277524,1751934651144,-249.988768,0.00020273,2]
[370277526,1751934651153,-1466.01,0.00020273,2]
[370277528,1751934651162,-460.0,0.00020273,2]
[370277529,1751934651171,-460.0,0.00020273,2]
[370277531,1751934651181,-2128.29,0.00020273,2]
[370277533,1751934651190,-460.0,0.00020273,2]
[370277536,1751934651203,-680.53,0.00020273,2]
[370277538,1751934651213,-151.0,0.00020273,2]
[370277540,1751934651222,-151.0,0.00020273,2]
[370277541,1751934651232,-460.0,0.00020273,2]
[370277543,1751934651241,-1956.06,0.00020273,2]
[370277545,1751934651250,-668.42,0.00020273,2]
[370277547,1751934651260,-2232.09,0.00020273,2]
[370277549,1751934651270,-3378.73,0.00020273,2]
[370277551,1751934651280,-767.21,0.00020273,2]
[370277553,1751934651289,-460.0,0.00020273,2]
[370277555,1751934651298,-6517.54,0.00020273,2]
[370277557,1751934651308,-673.62,0.00020273,2]
[370277559,1751934651317,-151.0,0.00020273,2]
[370277561,1751934651327,-151.0,0.00020273,2]
[370277563,1751934651336,-858.37,0.00020273,2]
[370277565,1751934651346,-572.69,0.00020273,2]
[370277567,1751934651355,-537.53,0.00020273,2]
[370277569,1751934651367,-151.0,0.00020273,2]
[370277571,1751934651377,-151.0,0.00020273,2]
[370277573,1751934651387,-3602.77,0.00020273,2]
[370277575,1751934651399,-1996.68,0.00020273,2]
[370277577,1751934651409,-460.0,0.00020273,2]
[370277579,1751934651421,-3214.33,0.00020273,2]
[370277581,1751934651431,-568.51,0.00020273,2]
[370277583,1751934651442,-1584.33,0.00020273,2]
[370277585,1751934651452,-460.0,0.00020273,2]
[370277587,1751934651461,-1356.66,0.00020273,2]
[370277589,1751934651470,-460.0,0.00020273,2]
[370277591,1751934651479,-4742.84,0.00020273,2]
[370277593,1751934651488,-460.0,0.00020273,2]
[370277595,1751934651497,-460.0,0.00020273,2]
[370277597,1751934651506,-1756.58,0.00020273,2]
[370277598,1751934651515,-460.0,0.00020273,2]
[370277600,1751934651524,-151.0,0.00020273,2]
[370277602,1751934651533,-248.85962,0.00020273,2]
[370277604,1751934651542,-1466.1,0.00020273,2]
[370277606,1751934651552,-460.0,0.00020273,2]
[370277608,1751934651560,-651.69,0.00020273,2]
[370277610,1751934651570,-525.9,0.00020273,2]
[370277612,1751934651579,-460.0,0.00020273,2]
[370277614,1751934651588,-460.0,0.00020273,2]
[370277616,1751934651597,-460.0,0.00020273,2]
[370277618,1751934651606,-636.94,0.00020273,2]
[370277620,1751934651616,-460.0,0.00020273,2]
[370277622,1751934651625,-460.0,0.00020273,2]
[370277624,1751934651634,-460.0,0.00020273,2]
[370277626,1751934651643,-1352.62,0.00020273,2]
[370277628,1751934651652,-460.0,0.00020273,2]
[370277630,1751934651661,-460.0,0.00020273,2]
[370277632,1751934651670,-460.0,0.00020273,2]
[370277633,1751934651680,-526.6,0.00020273,2]
[370277635,1751934651688,-2160.14,0.00020273,2]
[370277637,1751934651698,-460.0,0.00020273,2]
[370277639,1751934651707,-638.75,0.00020273,2]
[370277641,1751934651716,-460.0,0.00020273,2]
[370277643,1751934651726,-2621.6,0.00020273,2]
[370277645,1751934651735,-702.57,0.00020273,2]
[370277647,1751934651744,-4108.33,0.00020273,2]
[370277649,1751934651753,-845.48,0.00020273,2]
[370277651,1751934651762,-460.0,0.00020273,2]
[370277653,1751934651771,-511.83,0.00020273,2]
[370277655,1751934651781,-972.56,0.00020273,2]
[370277657,1751934651790,-460.0,0.00020273,2]
[370277659,1751934651800,-460.0,0.00020273,2]
[370277661,1751934651809,-661.82,0.00020273,2]
[370277663,1751934651818,-460.0,0.00020273,2]
[370277665,1751934651827,-460.0,0.00020273,2]
[370277667,1751934651836,-3209.36,0.00020273,2]
[370277668,1751934651845,-2838.13,0.00020273,2]
[370277670,1751934651854,-460.0,0.00020273,2]
[370277672,1751934651865,-605.55,0.00020273,2]
[370277673,1751934651873,-518.0,0.00020276,2]
[370277674,1751934651883,-151.0,0.00020314,2]
[370277675,1751934651892,-151.0,0.00020314,2]
[370277676,1751934651901,-151.0,0.00020314,2]
[370277677,1751934651910,-151.0,0.00020314,2]
[370277678,1751934651919,-518.0,0.00020324,2]
[370277679,1751934651929,-646.0,0.00020356,2]
[370277680,1751934651938,-2153.0,0.00020356,2]
[370277681,1751934651947,-403.57,0.00020356,2]
[370277682,1751934651957,-429.128,0.00020356,2]
[370277683,1751934651966,-151.0,0.00020356,2]
[370277684,1751934651975,-3679.2,0.00020382,2]
[370277685,1751934651984,-6000.0,0.00020408,2]
[370277686,1751934651993,-1000.0,0.00020413,2]
[370277687,1751934652003,-1000.0,0.00020413,2]
[370277688,1751934652012,-203.1307375,0.00020413,2]
[370277690,1751934652021,-1000.0,0.00020413,2]
[370277692,1751934652030,-1000.0,0.00020413,2]
[370277694,1751934652040,-500.0,0.00020433,2]
[370277696,1751934652049,-8000.0,0.00020496,2]
[370277698,1751934652058,-500.0,0.00020496,2]
[370277700,1751934652067,-500.0,0.00020496,2]
[370277702,1751934652077,-222.7,0.00020505,4]
[370277704,1751934652087,-160.0,0.00020521,3]
[370277706,1751934652097,-12584.46609586,0.00020521,3]
[370277708,1751934652107,-151.0,0.00020521,2]
[370277710,1751934652116,-6000.0,0.00020526,2]
[370277712,1751934652125,-215.0738,0.00020535,2]
[370277714,1751934652135,-151.0,0.00020547,2]
[370277716,1751934652144,-151.0,0.00020547,2]
[370277718,1751934652154,-151.0,0.00020547,2]
[370277720,1751934652163,-892.98,0.00020547,2]
[370277722,1751934652172,-460.0,0.00020547,2]
[370277724,1751934652181,-151.0,0.00020547,2]
[370277726,1751934652192,-151.0,0.00020547,2]
[370277728,1751934652202,-151.0,0.00020547,2]
[370277730,1751934652212,-583.0,0.00020547,2]
[370277732,1751934652221,-460.0,0.00020547,2]
[370277734,1751934652231,-460.0,0.00020547,2]
[370277736,1751934652241,-460.0,0.00020547,2]
[370277738,1751934652251,-460.0,0.00020547,2]
[370277740,1751934652260,-648.6,0.00020547,2]
[370277742,1751934652270,-460.0,0.00020547,2]
[370277744,1751934652280,-460.0,0.00020547,2]
[370277746,1751934652289,-460.0,0.00020547,2]
[370277748,1751934652299,-460.0,0.00020547,2]
[370277750,1751934652308,-151.0,0.00020547,2]
[370277752,1751934652318,-190.363954,0.00020547,2]
[370277754,1751934652327,-460.0,0.00020547,2]
[370277756,1751934652337,-554.18,0.00020547,2]
[370277758,1751934652346,-621.95,0.00020547,2]
[370277760,1751934652356,-745.73,0.00020547,2]
[370277762,1751934652366,-876.98,0.00020547,2]
[370277765,1751934652378,-1466.01,0.00020547,2]
[370277766,1751934652388,-460.0,0.00020547,2]
[370277769,1751934652399,-460.0,0.00020547,2]
[370277771,1751934652409,-2128.29,0.00020547,2]
[370277773,1751934652420,-460.0,0.00020547,2]
[370277775,1751934652429,-680.53,0.00020547,2]
[370277777,1751934652438,-500.0,0.00020547,14]
[370277779,1751934652447,-385.36261414,0.00020547,2]
[370277781,1751934652457,-1956.06,0.00020547,2]
[370277783,1751934652466,-668.42,0.00020547,2]
[370277785,1751934652475,-2232.09,0.00020547,2]
[370277801,1751934652618,-3378.73,0.00020547,2]
[370277803,1751934652627,-767.21,0.00020547,2]
[370277805,1751934652636,-460.0,0.00020547,2]
[370277807,1751934652647,-6517.54,0.00020547,2]
[370277809,1751934652656,-673.62,0.00020547,2]
[370277811,1751934652666,-151.0,0.00020547,2]
[370277813,1751934652676,-858.37,0.00020547,2]
[370277815,1751934652685,-572.69,0.00020547,2]
[370277817,1751934652694,-537.53,0.00020547,2]
[370277819,1751934652704,-297.638597,0.00020547,2]
[370277821,1751934652713,-3602.77,0.00020547,2]
[370277823,1751934652723,-1996.68,0.00020547,2]
[370277825,1751934652732,-460.0,0.00020547,2]
[370277827,1751934652742,-3214.33,0.00020547,2]
[370277829,1751934652752,-568.51,0.00020547,2]
[370277831,1751934652762,-460.0,0.00020547,2]
[370277833,1751934652771,-1584.33,0.00020547,2]
[370277835,1751934652782,-1356.66,0.00020547,2]
[370277837,1751934652791,-460.0,0.00020547,2]
[370277838,1751934652801,-4742.84,0.00020547,2]
[370277840,1751934652811,-375.19003772,0.00020547,2]
[370277842,1751934652821,-460.0,0.00020547,2]
[370277844,1751934652831,-1756.58,0.00020547,2]
[370277846,1751934652840,-460.0,0.00020547,2]
[370277848,1751934652849,-1466.1,0.00020547,2]
[370277850,1751934652858,-460.0,0.00020547,2]
[370277852,1751934652868,-651.69,0.00020547,2]
[370277854,1751934652878,-525.9,0.00020547,2]
[370277856,1751934652889,-460.0,0.00020547,2]
[370277858,1751934652899,-460.0,0.00020547,2]
[370277860,1751934652909,-460.0,0.00020547,2]
[370277862,1751934652918,-636.94,0.00020547,2]
[370277864,1751934652927,-460.0,0.00020547,2]
[370277866,1751934652937,-313.75523611,0.00020547,2]
[370277868,1751934652946,-460.0,0.00020547,2]
[370277870,1751934652955,-460.0,0.00020547,2]
[370277872,1751934652965,-460.0,0.00020547,2]
[370277874,1751934652974,-1352.62,0.00020547,2]
[370277876,1751934652983,-172.48,0.00020547,2]
[370277878,1751934652995,-526.6,0.00020547,2]
[370277880,1751934653005,-2160.14,0.00020547,2]
[370277882,1751934653015,-460.0,0.00020547,2]
[370277884,1751934653024,-638.75,0.00020547,2]
[370277886,1751934653034,-460.0,0.00020547,2]
[370277889,1751934653044,-2621.6,0.00020547,2]
[370277890,1751934653054,-702.57,0.00020547,2]
[370277893,1751934653064,-4108.33,0.00020547,2]
[370277895,1751934653074,-845.48,0.00020547,2]
[370277897,1751934653084,-460.0,0.00020547,2]
[370277899,1751934653094,-511.83,0.00020547,2]
[370277901,1751934653104,-972.56,0.00020547,2]
[370277903,1751934653114,-460.0,0.00020547,2]
[370277905,1751934653123,-460.0,0.00020547,2]
[370277907,1751934653133,-661.82,0.00020547,2]
[370277909,1751934653143,-460.0,0.00020547,2]
[370277911,1751934653153,-460.0,0.00020547,2]
[370277913,1751934653163,-3209.36,0.00020547,2]
[370277915,1751934653172,-2838.13,0.00020547,2]
[370277917,1751934653181,-460.0,0.00020547,2]
[370277919,1751934653190,-355.0422787,0.00020548,2]
[370277921,1751934653199,-8000.0,0.00020564,2]
[370277923,1751934653209,-151.0,0.00020564,2]
[370277925,1751934653218,-151.0,0.00020568,2]
[370277927,1751934653227,-1802.0,0.00020569,2]
[370277929,1751934653237,-974.48558282,0.00020585,2]
[370277931,1751934653246,-2450.93,0.000206,2]
[370277933,1751934653256,-151.0,0.000206,2]
[370277935,1751934653266,-150.0,0.0002062,2]
[370277937,1751934653275,-151.0,0.0002066,2]
[370277939,1751934653285,-151.0,0.0002066,2]
[370277941,1751934653294,-733.529,0.0002066,2]
[370277943,1751934653303,-177.985,0.0002066,2]
[370277945,1751934653313,-1802.0,0.00020683,2]
[370277947,1751934653322,-518.0,0.00020691,2]
[370277949,1751934653331,-151.0,0.00020691,2]
[370277951,1751934653340,-167.009442,0.00020707,2]
[370277953,1751934653349,-500.0,0.00020717,2]
[370277955,1751934653359,-500.0,0.00020717,2]
[370277957,1751934653370,-160.0,0.00020728,3]
[370277959,1751934653381,-160.0,0.00020728,3]
[370277961,1751934653390,-848.27993403,0.00020728,3]
[370277963,1751934653400,-222.7,0.00020753,4]
[370277965,1751934653409,-1044.68030393,0.00020798,2]
[370277967,1751934653418,-335.2,0.00020812,3]
[370277969,1751934653427,-500.0,0.0002082,10]
[370277970,1751934653436,-157.362823,0.00020821,2]
[370277972,1751934653445,-151.0,0.00020821,2]
[370277974,1751934653454,-500.0,0.00020821,2]
[370277976,1751934653464,-500.0,0.00020821,2]
[370277978,1751934653473,-892.98,0.00020821,2]
[370277980,1751934653482,-460.0,0.00020821,2]
[370277982,1751934653492,-151.0,0.00020821,2]
[370277984,1751934653500,-151.0,0.00020821,2]
[370277986,1751934653510,-151.0,0.00020821,2]